bitfinex-derivatives/quotes_SOLF0:USTF0_20260127
["timestamp","ask_amount","ask_price","bid_price","bid_amount"]
[1769534262946,4.30008443,124.56,124.48,77.55398311]
[1769534263146,4.30008443,124.56,124.48,70.31578311]
[1769534263352,7.2349,124.54,124.48,77.55408311]
[1769534264358,7.2339,124.56,124.49,7.2377]
[1769534265454,58.35278222,124.54,124.45,70.31578311]
[1769534265758,58.35278222,124.56,124.46,70.31578311]
[1769534266054,170.88908222,124.55,124.46,70.31578311]
[1769534266358,58.35278222,124.52,124.42,391.11578311]
[1769534266854,58.35278222,124.52,124.43,70.31578311]
[1769534267460,7.2372,124.5,124.43,70.31578311]
[1769534269859,7.2365,124.52,124.45,77.55578311]
[1769534270057,4.30008443,124.54,124.45,77.55578311]
[1769534270456,7.2356,124.53,124.46,77.55528311]
[1769534271458,58.35278222,124.55,124.46,77.55528311]
[1769534271459,7.236,124.52,124.46,70.31578311]
[1769534271854,7.2367,124.51,124.46,70.31578311]
[1769534272558,112.5746,124.51,124.38,116.98388443]
[1769534272764,112.5791,124.5,124.39,320.78]
[1769534272954,112.5886,124.49,124.39,320.78]
[1769534273160,7.239,124.47,124.39,320.78]
[1769534273459,112.5886,124.49,124.39,320.78]
[1769534274263,67.04188642,124.5,124.39,320.78]
[1769534274562,67.04188642,124.5,124.4,64.22988835]
[1769534275959,7.2377,124.5,124.4,64.22988835]
[1769534276263,66.6720909,124.5,124.4,64.22988835]
[1769534277962,66.6720909,124.5,124.41,7.2423]
[1769534278164,66.6720909,124.5,124.4,64.22988835]
[1769534278567,7.2383,124.49,124.4,71.47278835]
[1769534278769,179.2544909,124.5,124.4,71.47278835]
[1769534279866,7.2392,124.47,124.4,71.47278835]
[1769534280265,179.2544909,124.5,124.4,71.47278835]
[1769534280467,66.6720909,124.5,124.41,64.22988835]
[1769534280666,7.2383,124.49,124.41,64.22988835]
[1769534281365,66.6720909,124.46,124.35,64.22988835]
[1769534281675,66.6720909,124.41,124.32,64.22988835]
[1769534281859,7.2436,124.39,124.32,71.47758835]
[1769534282060,7.2436,124.39,124.29,64.22988835]
[1769534282061,66.6720909,124.38,124.29,64.22988835]
[1769534282260,179.3805909,124.36,124.25,64.22988835]
[1769534282465,179.3981909,124.34,124.25,64.22988835]
[1769534282758,73.9187909,124.34,124.25,64.22988835]
[1769534283471,78.22848392,124.36,124.26,64.22988835]
[1769534283774,70.98288392,124.36,124.26,64.22988835]
[1769534284169,7.2461,124.35,124.26,71.48068835]
[1769534284573,73.9181909,124.35,124.26,71.48068835]
[1769534285170,4.31079302,124.36,124.28,7.2497]
[1769534285374,179.3573909,124.39,124.29,64.22988835]
[1769534285375,66.6720909,124.39,124.29,64.22988835]
[1769534285577,179.3530909,124.39,124.29,64.22988835]
[1769534285873,7.2455,124.36,124.27,7.2502]
[1769534286469,179.3642909,124.38,124.28,64.22988835]
[1769534286470,73.9163909,124.38,124.28,64.22988835]
[1769534286871,66.6720909,124.38,124.29,64.22988835]
[1769534287069,66.6720909,124.38,124.29,71.47898835]
[1769534287576,78.22958392,124.34,124.25,64.22988835]
[1769534287776,183.70918392,124.34,124.25,64.22988835]
[1769534288175,7.2473,124.33,124.25,64.22988835]
[1769534288471,66.6720909,124.3,124.19,281.84194769]
[1769534288676,66.6720909,124.29,124.19,177.08678835]
[1769534289369,66.6720909,124.29,124.19,64.22988835]
[1769534290466,186.6912909,124.29,124.19,64.22988835]
[1769534290670,66.6720909,124.27,124.19,64.22988835]
[1769534291173,112.7534,124.31,124.16,112.8791]
[1769534291174,66.6720909,124.36,124.16,64.22988835]
[1769534291375,112.7539,124.31,124.21,64.22988835]
[1769534291574,179.4145909,124.32,124.21,64.22988835]
[1769534292173,179.4342909,124.3,124.21,64.22988835]
[1769534292579,70.98288392,124.33,124.22,64.22988835]
[1769534292879,183.71988392,124.33,124.22,64.22988835]
[1769534293177,73.9205909,124.31,124.22,64.22988835]
[1769534293380,73.9205909,124.31,124.2,120.0993]
[1769534293381,66.6720909,124.3,124.2,7.2544]
[1769534293877,66.6720909,124.3,124.2,71.48428835]
[1769534294070,66.6720909,124.3,124.21,7.2538]
[1769534294266,66.6720909,124.34,124.24,64.22988835]
[1769534294973,179.3988909,124.34,124.24,64.22988835]
[1769534295279,7.2485,124.31,124.21,7.2539]
[1769534295768,179.4268909,124.31,124.2,64.22988835]
[1769534295971,66.6720909,124.29,124.2,64.22988835]
[1769534296276,73.9216909,124.29,124.2,71.48428835]
[1769534296879,73.9216909,124.29,124.2,64.22988835]
[1769534297081,73.9222909,124.28,124.2,64.22988835]
[1769534298080,66.6720909,124.28,124.2,64.22988835]
[1769534298284,66.6720909,124.31,124.21,64.22988835]
[1769534298580,66.6720909,124.31,124.22,177.06128835]
[1769534298779,66.6720909,124.31,124.23,64.22988835]
[1769534298980,66.6720909,124.31,124.23,71.48258835]
[1769534299881,73.9205909,124.31,124.23,64.22988835]
[1769534300078,66.6720909,124.31,124.21,7.2538]
[1769534300383,66.6720909,124.3,124.19,64.22988835]
[1769534300584,7.2502,124.28,124.2,7.2545]
[1769534301576,73.9213909,124.3,124.21,71.48368835]
[1769534302382,7.2496,124.29,124.21,71.48368835]
[1769534302886,66.6720909,124.3,124.22,7.2533]
[1769534303076,7.2486,124.31,124.22,65.54327266]
[1769534303280,64.69369425,124.31,124.22,65.54327266]
[1769534303980,7.2496,124.29,124.22,65.54327266]
[1769534304183,180.55308864,124.29,124.19,65.54327266]
[1769534304378,67.78378864,124.28,124.19,65.54327266]
[1769534304579,67.78378864,124.27,124.16,67.47877515]
[1769534305380,7.2519,124.25,124.16,67.47877515]
[1769534306076,7.2524,124.24,124.16,67.47877515]
[1769534306383,67.78378864,124.24,124.15,6.01003751]
[1769534306583,67.78378864,124.24,124.16,67.47877515]
[1769534307083,67.78378864,124.27,124.19,7.2549]
[1769534307483,67.78378864,124.27,124.19,67.47877515]
[1769534307684,7.2519,124.25,124.16,74.73527515]
[1769534308583,7.2519,124.25,124.17,74.73507515]
[1769534308885,7.2519,124.25,124.17,67.47877515]
[1769534309087,180.59018864,124.25,124.17,67.47877515]
[1769534309286,67.78378864,124.24,124.15,13.26723751]
[1769534309488,67.78378864,124.24,124.15,73.48881266]
[1769534310291,7.2537,124.22,124.15,73.48881266]
[1769534310793,67.78378864,124.24,124.15,73.48881266]
[1769534311188,67.78378864,124.24,124.15,80.74621266]
[1769534311394,7.2536,124.22,124.15,73.48881266]
[1769534311692,67.78378864,124.24,124.15,73.48881266]
[1769534311989,7.2507,124.27,124.18,67.47877515]
[1769534312393,67.78378864,124.27,124.18,67.47877515]
[1769534312790,67.78378864,124.26,124.18,67.47877515]
[1769534312994,7.2524,124.24,124.18,67.47877515]
[1769534313194,67.78378864,124.26,124.18,67.47877515]
[1769534313392,67.78378864,124.29,124.2,67.47877515]
[1769534313693,75.03328864,124.29,124.21,67.47877515]
[1769534313888,72.09458166,124.32,124.22,67.47877515]
[1769534314191,434.1235,124.35,124.27,74.72897515]
[1769534314192,67.78378864,124.35,124.27,74.72897515]
[1769534314495,67.78378864,124.35,124.27,67.47877515]
[1769534314698,112.7332,124.33,124.24,67.47877515]
[1769534315385,112.7332,124.33,124.21,67.47877515]
[1769534315386,67.78378864,124.31,124.21,67.47877515]
[1769534316187,112.7185,124.35,124.23,67.47877515]
[1769534316188,117.02929302,124.35,124.23,67.47877515]
[1769534316390,67.78378864,124.34,124.24,67.47877515]
[1769534316598,67.78378864,124.33,124.24,67.47877515]
[1769534317093,67.78378864,124.32,124.22,7.2531]
[1769534317289,67.78378864,124.31,124.22,7.2531]
[1769534317489,67.78378864,124.31,124.22,67.47877515]
[1769534318395,75.03248864,124.31,124.24,7.2523]
[1769534318794,7.2489,124.3,124.22,67.47877515]
[1769534318989,67.78378864,124.31,124.22,67.47877515]
[1769534319494,67.78378864,124.31,124.22,74.73217515]
[1769534319898,67.78378864,124.31,124.22,67.47877515]
[1769534320197,67.78378864,124.31,124.24,7.2521]
[1769534320397,180.51058864,124.34,124.24,7.2521]
[1769534320592,67.78378864,124.33,124.24,7.2521]
[1769534321092,7.2483,124.31,124.24,7.2521]
[1769534321492,67.78378864,124.33,124.25,7.2516]
[1769534322503,306.73753106,124.36,124.28,67.47877515]
[1769534322504,374.5213197,124.36,124.28,67.47877515]
[1769534323896,7.246,124.35,124.28,67.47877515]
[1769534325605,7.2467,124.34,124.28,67.47877515]
[1769534325806,67.78378864,124.35,124.25,67.47877515]
[1769534326102,7.2467,124.34,124.25,67.47877515]
[1769534326604,75.03048864,124.34,124.25,67.47877515]
[1769534326994,75.03048864,124.34,124.26,7.2511]
[1769534327194,75.03048864,124.34,124.26,74.72987515]
[1769534327402,306.73753106,124.36,124.26,67.47877515]
[1769534327603,306.73753106,124.36,124.28,74.72857515]
[1769534328400,374.5213197,124.36,124.28,67.47877515]
[1769534328808,180.49878864,124.35,124.25,74.73047515]
[1769534329693,7.2471,124.33,124.26,7.2511]
[1769534330095,7.2477,124.32,124.25,67.47877515]
[1769534332202,7.2484,124.31,124.25,67.47877515]
[1769534332509,7.2484,124.31,124.23,67.47877515]
[1769534333008,7.2489,124.3,124.23,67.47877515]
[1769534333803,7.2495,124.29,124.23,67.47877515]
[1769534334004,112.7557,124.31,124.22,321.3]
[1769534334207,67.78378864,124.3,124.22,67.47877515]
[1769534334911,180.54688864,124.3,124.22,67.47877515]
[1769534335106,65.13232234,124.27,124.17,321.28]
[1769534335408,65.13232234,124.26,124.17,321.28]
[1769534335603,7.2523,124.25,124.17,321.28]
[1769534335905,7.2523,124.25,124.17,66.06885314]
[1769534336210,65.13232234,124.26,124.17,66.06885314]
[1769534336907,112.7722,124.29,124.19,66.06885314]
[1769534337108,65.13232234,124.26,124.16,66.06885314]
[1769534338011,65.13232234,124.26,124.17,7.2559]
[1769534338207,65.13232234,124.26,124.16,66.06885314]
[1769534338399,7.2524,124.24,124.16,73.32575314]
[1769534339105,177.95612234,124.23,124.15,6.01003751]
[1769534339307,177.96742234,124.22,124.15,6.01003751]
[1769534339513,65.13232234,124.2,124.15,3.751e-05]
[1769534339808,65.13232234,124.2,124.07,66.06885314]
[1769534339809,65.13232234,124.17,124.07,66.06885314]
[1769534340199,65.13232234,124.15,124.04,66.06885314]
[1769534340501,65.13232234,124.14,124.04,66.06885314]
[1769534340699,65.13232234,124.12,124.04,66.06885314]
[1769534341011,65.13232234,124.07,123.96,179.13455314]
[1769534341208,4.32728474,124.09,123.98,66.06885314]
[1769534341413,4.32728474,124.12,124.01,66.06885314]
[1769534341610,178.05332234,124.13,124.01,66.06885314]
[1769534341801,112.9563,124.09,124.01,66.06885314]
[1769534342109,65.13232234,124.11,124.0,66.06885314]
[1769534342414,65.13232234,124.11,124.01,66.06885314]
[1769534343310,112.9649,124.08,124.01,66.06885314]
[1769534343812,112.9717,124.07,123.97,66.06885314]
[1769534344111,69.45960708,124.09,123.98,66.06885314]
[1769534344304,69.45960708,124.12,124.0,66.06885314]
[1769534344507,65.13232234,124.12,124.01,66.06885314]
[1769534344706,65.13232234,124.12,124.01,70.39613788]
[1769534345413,112.909,124.14,124.03,66.06885314]
[1769534345707,65.13232234,124.13,124.03,66.06885314]
[1769534346416,72.39192234,124.12,124.03,66.06885314]
[1769534346610,185.31572234,124.12,124.03,66.06885314]
[1769534346813,178.06782234,124.11,124.01,66.06885314]
[1769534347311,178.07682234,124.1,124.01,66.06885314]
[1769534347615,178.07682234,124.1,123.99,66.06885314]
[1769534347616,65.13232234,124.09,123.99,66.06885314]
[1769534347819,178.08442234,124.09,123.99,66.06885314]
[1769534348212,65.13232234,124.09,123.99,66.06885314]
[1769534349708,65.13232234,124.09,123.96,66.06885314]
[1769534349912,65.13232234,124.04,123.93,387.70885314]
[1769534350218,72.39672234,124.04,123.94,66.06885314]
[1769534351114,65.13232234,124.07,123.96,66.06885314]
[1769534351422,112.9211,124.13,124.01,66.06885314]
[1769534351626,120.1834,124.12,124.01,66.06885314]
[1769534351921,7.2594,124.12,124.02,70.39613788]
[1769534352123,112.9134,124.14,124.02,70.39613788]
[1769534352124,504.05850708,124.15,124.03,66.06885314]
[1769534352721,499.73122234,124.15,124.03,66.06885314]
[1769534352915,72.39062234,124.14,124.03,66.06885314]
[1769534353616,112.8662,124.19,124.08,66.06885314]
[1769534353617,65.13232234,124.17,124.08,66.06885314]
[1769534353816,65.13232234,124.2,124.08,70.39613788]
[1769534354012,7.256,124.18,124.08,73.33015314]
[1769534354415,65.13232234,124.19,124.09,66.06885314]
[1769534354719,177.99332234,124.19,124.1,66.06885314]
[1769534355022,65.13232234,124.16,124.07,66.06885314]
[1769534355417,177.99332234,124.19,124.08,66.06885314]
[1769534356925,178.00172234,124.18,124.08,66.06885314]
[1769534357422,65.13232234,124.18,124.08,73.33035314]
[1769534357824,7.2562,124.18,124.1,66.06885314]
[1769534359928,72.38732234,124.2,124.1,66.06885314]
[1769534360524,72.38732234,124.2,124.11,7.2597]
[1769534360827,7.2555,124.19,124.11,66.06885314]
[1769534361727,65.13232234,124.2,124.11,73.32855314]
[1769534362418,72.38732234,124.2,124.12,73.32805314]
[1769534362821,65.61590341,124.23,124.14,77.76169809]
[1769534363021,178.43360341,124.24,124.14,70.50379809]
[1769534363222,112.8339,124.22,124.14,70.50379809]
[1769534363427,7.2549,124.2,124.14,70.50379809]
[1769534363926,7.2549,124.2,124.09,70.50379809]
[1769534363927,178.46920341,124.2,124.09,70.50379809]
[1769534364130,112.8611,124.19,124.09,70.50379809]
[1769534364427,112.8695,124.18,124.09,70.50379809]
[1769534364624,112.8883,124.16,124.09,70.50379809]
[1769534365532,7.2583,124.14,124.09,70.50379809]
[1769534365724,181.22444814,124.18,124.09,70.50379809]
[1769534366123,112.8533,124.2,124.09,70.50379809]
[1769534366627,181.23344814,124.17,124.07,67.95800889]
[1769534366824,112.8621,124.19,124.07,67.95800889]
[1769534367130,72.68223288,124.2,124.08,67.95800889]
[1769534367332,181.21544814,124.19,124.09,67.95800889]
[1769534367932,7.2565,124.17,124.09,75.21900889]
[1769534368134,181.21754814,124.19,124.09,75.21900889]
[1769534369321,7.2567,124.17,124.09,75.21900889]
[1769534370324,68.35494814,124.19,124.1,67.95800889]
[1769534370529,502.86734814,124.23,124.1,67.95800889]
[1769534370826,502.86734814,124.23,124.12,67.95800889]
[1769534370827,7.2553,124.19,124.12,67.95800889]
[1769534371028,112.8433,124.21,124.12,67.95800889]
[1769534371329,181.20734814,124.2,124.09,67.95800889]
[1769534372225,7.2565,124.17,124.09,67.95800889]
[1769534372630,68.35494814,124.2,124.09,67.95800889]
[1769534373231,112.8354,124.22,124.11,67.95800889]
[1769534373435,181.19704814,124.21,124.11,67.95800889]
[1769534373940,7.256,124.18,124.11,67.95800889]
[1769534374137,68.35494814,124.18,124.08,67.95800889]
[1769534374530,181.22704814,124.18,124.08,75.21920889]
[1769534375035,7.2576,124.15,124.08,75.21920889]
[1769534375340,7.2576,124.15,124.08,67.95800889]
[1769534375933,7.257,124.17,124.08,67.95800889]
[1769534376432,112.8651,124.19,124.1,67.95800889]
[1769534376433,7.2558,124.19,124.1,67.95800889]
[1769534376633,181.19704814,124.21,124.1,67.95800889]
[1769534376939,181.19704814,124.21,124.07,67.95800889]
[1769534376940,68.35494814,124.17,124.07,67.95800889]
[1769534377142,68.35494814,124.16,124.07,67.95800889]
[1769534377638,7.2582,124.14,124.07,75.22020889]
[1769534377840,68.35494814,124.16,124.07,67.95800889]
[1769534378145,75.61214814,124.16,124.09,7.2608]
[1769534378441,68.35494814,124.19,124.09,67.95800889]
[1769534378644,7.2561,124.18,124.11,7.2599]
[1769534379841,72.68223288,124.22,124.12,75.21730889]
[1769534380238,72.68223288,124.25,124.13,67.95800889]
[1769534380444,68.35494814,124.25,124.14,67.95800889]
[1769534380943,7.2529,124.23,124.16,7.2569]
[1769534382035,68.35494814,124.25,124.14,67.95800889]
[1769534382036,7.2537,124.22,124.14,75.21560889]
[1769534382240,68.35494814,124.22,124.14,67.95800889]
[1769534382637,7.2552,124.19,124.12,7.2588]
[1769534383234,7.2546,124.21,124.13,75.21650889]
[1769534383438,68.35494814,124.22,124.13,75.21650889]
[1769534384743,68.35494814,124.2,124.11,328.9195]
[1769534384934,68.35494814,124.2,124.11,7.2595]
[1769534385139,75.61014814,124.2,124.12,7.2592]
[1769534385339,75.61014814,124.2,124.12,67.95800889]
[1769534386044,7.2553,124.19,124.12,75.21730889]
[1769534386540,68.35494814,124.2,124.12,67.95800889]
[1769534387648,7.2547,124.2,124.13,75.21670889]
[1769534387854,68.35494814,124.23,124.13,67.95800889]
[1769534389052,7.2542,124.21,124.14,7.2578]
[1769534389246,68.35494814,124.23,124.13,67.95800889]
[1769534389642,181.18944814,124.22,124.13,67.95800889]
[1769534389941,68.35494814,124.21,124.13,67.95800889]
[1769534390144,7.2552,124.19,124.13,67.95800889]
[1769534391153,7.2552,124.19,124.13,75.21670889]
[1769534391451,7.2552,124.19,124.13,67.95800889]
[1769534392049,68.35494814,124.19,124.1,67.95800889]
[1769534392252,181.22704814,124.18,124.1,67.95800889]
[1769534392747,75.61174814,124.17,124.09,7.261]
[1769534392945,112.8643,124.19,124.09,75.21900889]
[1769534393146,181.20974814,124.2,124.09,67.95800889]
[1769534393350,68.35494814,124.2,124.11,67.95800889]
[1769534394055,7.2553,124.19,124.12,75.21730889]
[1769534394649,7.2546,124.21,124.13,73.63150531]
[1769534394846,7.2546,124.21,124.13,66.37280531]
[1769534395449,7.2546,124.21,124.14,73.63080531]
[1769534396055,7.2548,124.2,124.14,66.37280531]
[1769534397350,182.41855185,124.23,124.1,117.26588474]
[1769534397351,69.59195185,124.22,124.1,66.37280531]
[1769534397656,7.2559,124.18,124.11,73.63250531]
[1769534397956,112.8365,124.22,124.11,66.37280531]
[1769534398159,7.2552,124.2,124.13,73.63150531]
[1769534400159,7.2554,124.19,124.13,66.37280531]
[1769534400658,7.256,124.18,124.1,77.9624215]
[1769534400862,7.256,124.18,124.1,73.63290531]
[1769534401062,69.59195185,124.19,124.1,73.63290531]
[1769534401759,69.59195185,124.19,124.11,73.63270531]
[1769534401961,69.59195185,124.19,124.11,66.37280531]
[1769534403059,69.59195185,124.19,124.07,353.3447]
[1769534403060,182.48905185,124.15,124.05,66.37280531]
[1769534403361,69.59195185,124.14,124.05,66.37280531]
[1769534403660,4.32951619,124.16,124.05,66.37280531]
[1769534404055,69.59195185,124.16,124.05,66.37280531]
[1769534404355,69.59195185,124.16,124.05,112.9839]
[1769534404550,69.59195185,124.16,124.06,66.37280531]
[1769534405055,76.84965185,124.15,124.06,66.37280531]
[1769534405260,69.59195185,124.14,124.06,66.37280531]
[1769534405661,182.50245185,124.14,124.06,66.37280531]
[1769534405853,182.52735185,124.11,124.03,66.37280531]
[1769534406058,182.52735185,124.11,123.98,113.0433]
[1769534406059,69.59195185,124.1,124.0,66.37280531]
[1769534406263,7.2618,124.08,124.0,73.63880531]
[1769534407264,76.85295185,124.1,124.02,66.37280531]
[1769534407460,182.50905185,124.13,124.02,66.37280531]
[1769534407866,7.2606,124.1,124.02,73.63780531]
[1769534408165,69.59195185,124.13,124.02,66.37280531]
[1769534408462,7.2597,124.12,124.04,73.63660531]
[1769534408662,7.2597,124.12,124.04,66.37280531]
[1769534409065,69.59195185,124.13,124.04,66.37280531]
[1769534409563,76.85085185,124.13,124.04,66.37280531]
[1769534410158,76.85085185,124.13,124.04,73.63670531]
[1769534411269,182.46085185,124.19,124.06,66.37280531]
[1769534411468,182.46085185,124.19,124.07,66.37280531]
[1769534411765,69.59195185,124.19,124.09,66.37280531]
[1769534412063,182.43545185,124.21,124.11,66.37280531]
[1769534412560,69.59195185,124.2,124.11,66.37280531]
[1769534412964,182.44605185,124.2,124.11,66.37280531]
[1769534413370,76.84705185,124.2,124.11,66.37280531]
[1769534413757,7.2554,124.19,124.11,66.37280531]
[1769534413957,69.59195185,124.2,124.11,66.37280531]
[1769534414462,7.2555,124.19,124.11,66.37280531]
[1769534414968,69.59195185,124.2,124.11,66.37280531]
[1769534415567,7.256,124.18,124.11,66.37280531]
[1769534417564,7.2571,124.16,124.08,66.37280531]
[1769534419170,7.2561,124.18,124.08,66.37280531]
[1769534419675,7.2561,124.18,124.1,66.37280531]
[1769534420370,7.2561,124.18,124.1,73.63290531]
[1769534420567,76.84705185,124.2,124.1,66.37280531]
[1769534420967,183.83052101,124.22,124.12,66.37280531]
[1769534421168,69.59195185,124.21,124.12,66.37280531]
[1769534421568,182.44535185,124.2,124.12,66.37280531]
[1769534421875,69.59195185,124.2,124.09,66.37280531]
[1769534422172,69.59195185,124.2,124.12,66.37280531]
[1769534422368,69.59195185,124.19,124.08,4.32951619]
[1769534422571,65.75207618,124.18,124.09,66.37280531]
[1769534422875,178.62347618,124.18,124.09,66.37280531]
[1769534423861,7.2578,124.15,124.09,66.37280531]
[1769534427378,65.75207618,124.17,124.09,66.37280531]
[1769534427582,176.86523542,124.2,124.09,66.37280531]
[1769534428883,7.2567,124.17,124.09,73.63370531]
[1769534429275,64.01093542,124.2,124.09,66.37280531]
[1769534429582,64.01093542,124.18,124.09,66.37280531]
[1769534430683,7.2577,124.15,124.09,66.37280531]
[1769534432183,176.88393542,124.18,124.09,66.37280531]
[1769534432381,64.01093542,124.13,124.02,4.32951619]
[1769534432679,64.01093542,124.11,124.03,64.9307861]
[1769534433583,7.2613,124.09,124.03,64.9307861]
[1769534436892,7.2622,124.08,124.03,64.9307861]
[1769534437089,64.01093542,124.11,124.03,64.9307861]
[1769534437886,7.2611,124.09,124.03,64.9307861]
[1769534438089,64.01093542,124.13,124.03,64.9307861]
[1769534438387,7.2607,124.1,124.03,64.9307861]
[1769534438588,64.01093542,124.11,124.03,64.9307861]
[1769534439186,64.01093542,124.08,124.0,386.6107861]
[1769534439393,64.01093542,124.08,123.97,113.0544]
[1769534439394,64.01093542,124.05,123.97,64.9307861]
[1769534439887,7.2642,124.04,123.97,72.1987861]
[1769534440091,64.01093542,124.05,123.97,64.9307861]
[1769534440493,64.01093542,124.05,123.96,113.0663]
[1769534440494,7.2624,124.07,123.98,72.1981861]
[1769534440693,71.27333542,124.07,123.98,72.1981861]
[1769534441589,4.32951619,124.09,123.99,64.9307861]
[1769534441789,68.34045161,124.09,123.99,64.9307861]
[1769534441988,7.2636,124.05,123.99,64.9307861]
[1769534442189,71.27453542,124.05,123.96,64.9307861]
[1769534442592,71.27453542,124.05,123.97,72.1986861]
[1769534442889,71.27453542,124.05,123.97,64.9307861]
[1769534443988,7.2641,124.04,123.97,64.9307861]
[1769534444679,64.01093542,124.08,123.97,64.9307861]
[1769534444887,64.01093542,124.08,123.98,64.9307861]
[1769534445087,176.95953542,124.1,123.98,64.9307861]
[1769534445395,225.8053,124.15,124.03,64.9307861]
[1769534445694,7.2569,124.17,124.09,64.9307861]
[1769534445896,64.01093542,124.19,124.09,64.9307861]
[1769534446093,176.85663542,124.21,124.09,64.9307861]
[1769534446290,7.2553,124.19,124.1,72.1907861]
[1769534446796,7.2564,124.18,124.1,64.9307861]
[1769534447294,64.01093542,124.18,124.1,64.9307861]
[1769534447989,64.01093542,124.18,124.07,234.9]
[1769534447990,64.01093542,124.15,124.07,64.9307861]
[1769534448796,64.01093542,124.14,124.05,64.9307861]
[1769534450093,176.91963542,124.14,124.05,64.9307861]
[1769534450295,64.01093542,124.14,124.05,64.9307861]
[1769534451099,7.2589,124.13,124.05,64.9307861]
[1769534451592,7.2595,124.12,124.05,64.9307861]
[1769534451900,64.01093542,124.12,124.02,72.1955861]
[1769534452401,176.95363542,124.1,124.02,64.9307861]
[1769534453694,64.01093542,124.1,124.02,64.9307861]
[1769534453991,176.93023542,124.13,124.02,64.9307861]
[1769534454904,7.2604,124.11,124.03,73.96190971]
[1769534455100,112.902,124.15,124.03,66.69750971]
[1769534455303,177.01353754,124.15,124.03,71.0270259]
[1769534455596,64.11153754,124.12,124.03,73.96210971]
[1769534456495,7.2601,124.11,124.03,73.96210971]
[1769534457400,7.2601,124.11,124.03,66.69750971]
[1769534458303,7.2601,124.11,124.03,73.96170971]
[1769534459501,64.11153754,124.12,124.03,66.69750971]
[1769534459705,64.11153754,124.08,124.0,66.69750971]
[1769534459902,112.9647,124.08,123.97,73.96520971]
[1769534460102,177.08083754,124.07,123.97,73.96520971]
[1769534460297,177.08083754,124.07,123.97,66.69750971]
[1769534461604,64.11153754,124.03,123.94,66.69750971]
[1769534461807,64.11153754,124.01,123.91,66.69750971]
[1769534462011,64.11153754,124.01,123.92,66.69750971]
[1769534462503,64.11153754,124.05,123.96,66.69750971]
[1769534463005,71.37513754,124.05,123.96,66.69750971]
[1769534463409,177.10263754,124.05,123.96,66.69750971]
[1769534463604,64.11153754,124.04,123.93,66.69750971]
[1769534464409,7.2649,124.03,123.94,73.96720971]
[1769534466602,112.9914,124.05,123.94,66.69750971]
[1769534466603,64.11153754,124.05,123.94,66.69750971]
[1769534466814,68.44885275,124.04,123.94,66.69750971]
[1769534466998,68.44885275,124.01,123.89,358.85750971]
[1769534467309,64.11153754,123.99,123.89,66.69750971]
[1769534467607,64.11153754,123.99,123.89,71.03482492]
[1769534467813,64.11153754,123.98,123.89,66.69750971]
[1769534468200,64.11153754,124.01,123.89,66.69750971]
[1769534468409,64.11153754,124.04,123.93,66.69750971]
[1769534468710,71.37593754,124.04,123.95,66.69750971]
[1769534469310,71.37643754,124.03,123.93,7.2701]
[1769534469607,64.11153754,124.01,123.92,66.69750971]
[1769534470109,71.37823754,124.0,123.89,501.78840971]
[1769534470309,64.11153754,124.0,123.89,66.69750971]
[1769534471704,64.11153754,123.98,123.89,66.69750971]
[1769534471903,113.0353,124.0,123.88,72.70754722]
[1769534471904,64.11153754,123.97,123.88,72.70754722]
[1769534472305,71.37813754,124.0,123.89,66.69750971]
[1769534472706,7.2671,123.99,123.9,7.2719]
[1769534473607,177.16813754,123.98,123.89,66.69750971]
[1769534473812,64.11153754,123.95,123.88,6.01003751]
[1769534474003,64.11153754,123.94,123.88,6.01003751]
[1769534474613,64.11153754,123.92,123.88,3.751e-05]
[1769534475307,71.38293754,123.92,123.88,3.751e-05]
[1769534475708,7.2724,123.9,123.88,3.751e-05]
[1769534475909,7.2724,123.9,123.83,66.69750971]
[1769534476709,68.44885275,123.95,123.84,66.69750971]
[1769534477016,64.11153754,123.94,123.84,66.69750971]
[1769534477313,64.11153754,123.97,123.86,66.69750971]
[1769534477613,4.33731521,123.99,123.88,66.69750971]
[1769534478014,7.2682,123.97,123.89,7.2727]
[1769534478610,7.2682,123.97,123.89,73.97020971]
[1769534479019,7.2682,123.97,123.89,66.69750971]
[1769534479314,177.17273754,123.97,123.89,66.69750971]
[1769534479515,64.11153754,123.97,123.89,66.69750971]
[1769534479711,71.38013754,123.97,123.89,66.69750971]
[1769534479910,7.2686,123.97,123.89,66.69750971]
[1769534480118,64.11153754,124.0,123.89,66.69750971]
[1769534480813,113.0151,124.02,123.91,66.69750971]
[1769534481004,64.11153754,124.03,123.91,66.69750971]
[1769534481202,64.11153754,124.03,123.92,7.2707]
[1769534481203,7.2661,124.01,123.92,7.2707]
[1769534481408,7.2661,124.01,123.93,66.69750971]
[1769534481619,64.11153754,124.01,123.9,71.03482492]
[1769534482209,7.2672,123.99,123.9,71.03482492]
[1769534482610,177.97869811,124.04,123.92,69.63084282]
[1769534482808,64.97329811,124.04,123.94,69.63084282]
[1769534483406,7.265,124.03,123.94,69.63084282]